bitfinex-derivatives/quotes_ETHF0:USTF0_20241231
["timestamp","ask_amount","ask_price","bid_price","bid_amount"]
[1735682266186,0.2988,3352.9,3352.8,0.2988]
[1735682267182,0.74689,3353.4,3352.9,0.29878]
[1735682267183,0.29879,3353.0,3352.9,0.29878]
[1735682271185,0.29879,3353.0,3352.6,5.41574117]
[1735682271186,0.29878,3353.2,3353.1,0.29877]
[1735682272586,0.29878,3353.1,3353.0,0.29878]
[1735682272887,0.29878,3353.2,3353.1,0.29877]
[1735682274386,5.01481381,3353.5,3352.7,4.66869117]
[1735682274585,0.2988,3353.0,3352.9,0.29879]
[1735682276288,0.465,3353.2,3352.6,5.41574117]
[1735682276289,0.76378,3353.2,3353.1,0.29878]
[1735682277786,0.465,3353.2,3353.1,0.29878]
[1735682278288,3.96728172,3353.4,3353.3,0.29876]
[1735682278492,4.42488172,3353.4,3353.3,0.29876]
[1735682279186,0.9135,3353.4,3353.3,0.29876]
[1735682280283,4.42488172,3353.4,3353.3,0.29876]
[1735682281284,0.9135,3353.4,3353.3,0.29876]
[1735682282185,6.45013024,3353.4,3353.3,0.29876]
[1735682283292,1.76949559,3353.4,3353.3,0.29876]
[1735682284691,1.76949559,3353.4,3353.3,13.07187553]
[1735682286190,0.9135,3353.4,3353.3,6.07696818]
[1735682287988,3.95791129,3353.5,3353.4,0.29687357]
[1735682288690,0.43,3353.5,3353.4,13.0699891]
[1735682290292,0.43,3353.5,3353.4,6.07508175]
[1735682290789,0.29874,3353.5,3353.4,6.07508175]
[1735682290995,3.52791129,3353.7,3353.6,0.29873]
[1735682291594,4.68063465,3353.7,3353.6,3.50653]
[1735682292890,4.68063465,3353.7,3353.6,4.70353]
[1735682293097,3.52483359,3354.1,3353.6,10.17562957]
[1735682293291,3.52483359,3354.1,3354.0,4.36249559]
[1735682294191,3.52483359,3354.1,3354.0,3.5065]
[1735682294595,0.29865,3354.6,3354.0,13.63710323]
[1735682294797,0.29865,3354.6,3354.5,0.29864]
[1735682295393,3.52483359,3354.7,3354.6,0.29864]
[1735682295599,4.40993359,3354.8,3354.7,0.29864]
[1735682296097,4.70856359,3354.8,3354.7,0.29864]
[1735682296298,4.40993359,3354.8,3354.7,0.29864]
[1735682296695,0.29861,3355.0,3354.4,3.2078]
[1735682296895,0.29862,3354.9,3354.8,0.29862]
[1735682297098,0.29862,3354.9,3354.8,0.29863]
[1735682297296,0.29864,3354.7,3354.6,0.29863]
[1735682297492,1.80697469,3355.0,3354.5,3.2078]
[1735682297698,0.75224,3354.6,3354.5,3.2078]
[1735682298197,1.3455,3354.6,3354.2,4.65847366]
[1735682298403,0.29867,3354.3,3354.2,4.65847366]
[1735682298795,3.15247469,3354.6,3354.1,7.86627366]
[1735682299000,0.29868,3354.3,3354.2,0.29868]
[1735682300598,0.29868,3354.2,3354.1,3.50648]
[1735682300906,0.29868,3354.2,3354.1,3.2078]
[1735682303898,0.29868,3354.2,3354.1,3.50649]
[1735682311507,0.29868,3354.3,3354.2,0.29868]
[1735682311708,0.29868,3354.2,3354.1,3.50648]
[1735682315799,0.29868,3354.3,3354.2,0.29868]
[1735682317309,1.3455,3354.6,3354.5,0.29865]
[1735682317604,1.15409208,3354.9,3354.8,0.29862]
[1735682317799,2.03519208,3354.9,3354.8,0.29862]
[1735682320217,1.17972,3354.9,3354.8,0.29862]
[1735682324914,0.8811,3354.9,3354.5,3.2078]
[1735682325114,0.29863,3354.8,3354.7,0.29863]
[1735682326119,2.68769592,3354.9,3354.3,4.0809]
[1735682326315,0.29864,3354.7,3354.6,0.29864]
[1735682326714,2.68769592,3354.9,3354.3,4.82757]
[1735682327015,0.29863,3354.8,3354.7,0.29863]
[1735682330618,0.8811,3354.9,3354.3,4.0809]
[1735682330818,0.8811,3354.9,3354.8,0.29863]
[1735682331213,0.8811,3354.9,3354.8,0.76293]
[1735682333815,0.29863,3354.8,3354.7,3.6436]
[1735682334015,0.29863,3354.8,3354.7,3.94224]
[1735682334216,0.8811,3354.9,3354.7,3.6436]
[1735682334420,0.8811,3354.9,3354.7,0.4358]
[1735682334822,1.17972,3354.9,3354.8,0.29863]
[1735682335015,0.8811,3354.9,3354.8,0.29863]
[1735682335219,0.4355,3355.0,3354.9,0.29862]
[1735682335220,0.29861,3355.0,3354.9,0.29862]
[1735682340123,1.3374,3355.3,3354.8,0.453]
[1735682340319,0.9002,3355.3,3355.2,3.2078]
[1735682340618,4.37992489,3355.5,3355.2,3.2078]
[1735682340619,4.37992489,3355.5,3355.4,0.29857]
[1735682341226,3.52483359,3355.5,3355.4,0.29857]
[1735682341424,3.52483359,3355.5,3355.4,0.72777]
[1735682341726,5.23572489,3355.8,3355.4,0.4292]
[1735682341928,5.23572489,3355.8,3355.7,0.29855]
[1735682342227,4.67917359,3355.8,3355.7,0.29855]
[1735682342724,3.52483359,3355.8,3355.7,0.29855]
[1735682343026,3.52483359,3356.1,3356.0,0.29852]
[1735682344324,0.29854,3355.9,3355.7,0.29854]
[1735682344523,0.72682,3356.0,3355.8,0.29853]
[1735682344924,0.72682,3356.0,3355.9,0.29853]
[1735682346625,0.29853,3355.9,3355.7,0.29854]
[1735682346921,0.29853,3355.9,3355.8,0.29854]
[1735682347126,2.23389531,3356.0,3355.4,3.2078]
[1735682347319,0.4473,3355.8,3355.4,3.2078]
[1735682347520,0.29856,3355.5,3355.4,0.29857]
[1735682347726,0.4473,3355.8,3355.2,4.65847366]
[1735682347727,0.29858,3355.3,3355.2,4.65847366]
[1735682347926,3.50638,3355.3,3355.2,4.65847366]
[1735682348320,3.6703,3355.3,3354.9,4.65847366]
[1735682348523,0.29861,3355.0,3354.9,4.65847366]
[1735682349926,0.29861,3355.0,3354.4,0.29866]
[1735682349927,0.29865,3354.5,3354.4,0.29866]
[1735682350526,0.29865,3354.6,3354.5,0.29865]
[1735682350922,0.9186,3354.7,3354.3,0.4205]
[1735682351127,0.29866,3354.5,3354.4,0.29866]
[1735682351320,0.29867,3354.4,3354.3,0.29867]
[1735682351729,0.29866,3354.5,3354.4,0.29866]
[1735682352419,0.9186,3354.7,3354.1,3.636]
[1735682352625,0.29868,3354.2,3354.1,8.16495366]
[1735682352823,0.29868,3354.3,3354.1,8.16495366]
[1735682353624,0.9186,3354.7,3354.1,8.16495366]
[1735682353821,0.29868,3354.3,3354.1,3.50648]
[1735682354133,0.29869,3354.1,3354.0,0.2987]
[1735682354318,1.80559531,3354.5,3353.9,0.4478]
[1735682354525,0.29868,3354.3,3354.1,0.29868]
[1735682354727,0.29868,3354.2,3354.1,0.29868]
[1735682355031,1.80559531,3354.5,3354.1,0.29868]
[1735682355324,0.29868,3354.3,3354.0,0.2987]
[1735682355535,0.29868,3354.3,3354.2,0.29868]
[1735682355925,0.29869,3354.1,3354.0,0.2987]
[1735682356222,0.29869,3354.2,3354.1,0.29869]
[1735682357020,1.80559531,3354.5,3353.9,0.4478]
[1735682357331,0.2987,3354.0,3353.9,0.7465]
[1735682360026,0.2987,3354.0,3353.7,4.65847366]
[1735682360027,0.29872,3353.8,3353.7,4.65847366]
[1735682360626,5.29872,3353.8,3353.7,2.39887366]
[1735682360832,5.29872,3353.8,3353.7,1.69927366]
[1735682361634,5.29872,3353.8,3352.6,1.17832]
[1735682361635,0.29881,3352.8,3352.6,1.17832]
[1735682361827,3.2078,3353.2,3352.6,0.4331]
[1735682362026,0.2988,3352.9,3352.6,0.73192]
[1735682362231,0.2988,3352.9,3352.7,0.75461]
[1735682362427,0.4541,3353.1,3352.7,0.4558]
[1735682362629,0.29881,3352.8,3352.7,0.4558]
[1735682364432,0.2988,3352.9,3352.7,0.75461]
[1735682364733,0.2988,3352.9,3352.8,0.2988]
[1735682364934,0.29879,3353.1,3352.9,0.29879]
[1735682365130,3.2078,3353.2,3352.7,0.4558]
[1735682365330,3.2078,3353.2,3352.8,0.2988]
[1735682365536,0.29879,3353.0,3352.8,0.2988]
[1735682366043,0.2988,3352.9,3352.7,0.75461]
[1735682366234,0.2988,3352.9,3352.8,0.29881]
[1735682366840,0.29879,3353.0,3352.8,0.29881]
[1735682367539,0.29879,3353.0,3352.9,0.2988]
[1735682367844,0.29878,3353.1,3352.9,0.2988]
[1735682368037,3.2078,3353.6,3352.8,1.80559531]
[1735682368232,0.29876,3353.4,3353.2,0.29877]
[1735682368436,0.29876,3353.4,3353.3,0.29876]
[1735682368848,0.29876,3353.4,3353.2,0.29876]
[1735682370445,3.2078,3353.6,3353.2,0.29876]
[1735682370649,0.29876,3353.3,3353.2,0.29876]
[1735682370834,0.29876,3353.3,3353.1,0.29877]
[1735682372144,0.29876,3353.3,3353.2,0.4579]
[1735682372945,0.29876,3353.4,3353.2,0.4579]
[1735682373846,0.29876,3353.4,3353.2,0.75666]
[1735682374042,0.29876,3353.4,3353.3,0.29876]
[1735682374248,3.2078,3353.6,3353.2,0.4579]
[1735682374447,0.29876,3353.4,3353.3,0.29876]
[1735682375241,0.29876,3353.3,3353.2,0.75667]
[1735682375446,0.29876,3353.3,3353.2,0.4579]
[1735682378445,5.01339531,3353.6,3353.2,0.4579]
[1735682383750,5.31213531,3353.6,3353.2,0.4579]
[1735682384456,5.31213531,3353.6,3353.3,0.29876]
[1735682384457,5.01339531,3353.6,3353.3,0.29876]
[1735682384657,3.2078,3353.6,3353.4,0.29874]
[1735682384851,3.2078,3353.6,3353.5,0.29874]
[1735682385653,3.2078,3353.6,3353.3,0.4457]
[1735682385957,3.2078,3353.6,3353.4,0.29875]
[1735682386354,3.2078,3353.6,3353.3,0.4457]
[1735682386559,0.29873,3353.7,3353.5,0.29874]
[1735682386750,2.25059531,3353.9,3353.5,0.29874]
[1735682386956,0.29873,3353.6,3353.5,0.29874]
[1735682387156,0.29873,3353.7,3353.5,0.29874]
[1735682387656,3.6659,3354.0,3353.3,0.4457]
[1735682387859,0.29872,3353.9,3353.8,0.29871]
[1735682389059,0.29872,3353.8,3353.7,0.29872]
[1735682389260,3.2078,3354.0,3353.5,0.457]
[1735682389562,0.29873,3353.7,3353.6,0.29873]
[1735682390660,0.29871,3353.9,3353.8,0.29871]
[1735682391062,0.29873,3353.8,3353.7,0.29872]
[1735682391363,0.74673,3354.1,3353.5,0.457]
[1735682391567,0.29873,3353.7,3353.6,0.29873]
[1735682395058,0.74673,3354.1,3353.5,0.457]
[1735682395259,0.29873,3353.6,3353.5,0.75573]
[1735682395471,0.29873,3353.6,3353.5,0.29873]
[1735682395764,0.74673,3354.1,3353.3,3.6535]
[1735682395765,0.74112,3353.8,3353.7,0.29872]
[1735682395962,6.73263359,3354.7,3353.7,3.2078]
[1735682396157,3.52483359,3354.7,3354.6,3.2078]
[1735682396354,3.52483359,3354.7,3354.6,3.50644]
[1735682396664,0.29863,3354.8,3354.6,3.2078]
[1735682396868,0.29863,3354.8,3354.7,0.29864]
[1735682397058,0.29864,3354.7,3354.6,3.50644]
[1735682397265,0.29864,3354.7,3354.6,3.2078]
[1735682397566,0.29864,3354.6,3354.5,0.29865]
[1735682398065,0.4284,3354.7,3354.2,3.2078]
[1735682398260,0.4284,3354.7,3354.6,0.29864]
[1735682398467,0.4284,3354.7,3354.3,0.4626]
[1735682398766,0.29866,3354.4,3354.3,0.76127]
[1735682400254,0.29866,3354.4,3354.3,0.4626]
[1735682400454,2.55224531,3354.5,3353.8,10.19551049]
[1735682400660,0.29871,3353.9,3353.8,7.28643049]
[1735682400861,0.29871,3353.9,3353.8,0.29872]
[1735682402264,0.29871,3353.9,3353.8,0.29871]
[1735682402662,0.7515,3354.0,3353.9,0.29871]
[1735682403964,0.29872,3353.8,3353.7,0.29872]
[1735682404663,0.29871,3353.9,3353.8,0.29871]
[1735682406359,0.9179,3354.0,3353.5,0.899]
[1735682406360,0.29873,3353.7,3353.5,0.899]
[1735682406566,0.29873,3353.7,3353.6,0.29873]
[1735682406762,0.9179,3354.0,3353.3,3.2078]
[1735682406964,0.29875,3353.5,3353.4,0.29874]
[1735682407462,0.29875,3353.4,3353.3,3.50656]
[1735682411670,0.29872,3353.9,3353.8,0.29871]
[1735682411869,0.29873,3353.8,3353.7,0.29872]
[1735682412672,0.29871,3353.9,3353.8,0.29871]
[1735682413267,0.29872,3353.8,3353.7,0.29872]
[1735682413468,1.80559531,3354.1,3353.3,3.2078]
[1735682413469,0.29873,3353.7,3353.6,0.29873]
[1735682414674,2.55233531,3354.1,3353.3,3.2078]
[1735682414866,0.29875,3353.5,3353.4,0.29875]
[1735682416468,0.29875,3353.4,3353.3,3.2078]
[1735682416669,0.29878,3353.1,3353.0,6.98771049]
[1735682416969,2.10437531,3353.1,3353.0,6.98771049]
[1735682418178,1.04577,3353.0,3352.6,0.29882]
[1735682418364,0.29882,3352.7,3352.6,0.29882]
[1735682420974,1.80559531,3352.7,3352.2,0.29885]
[1735682421175,1.80559531,3352.7,3352.1,7.84821049]
[1735682421176,2.55265531,3352.7,3352.1,7.84821049]
[1735682421374,0.29885,3352.4,3352.3,0.29884]
[1735682423477,2.55265531,3352.7,3352.3,0.29884]
[1735682423867,0.29885,3352.4,3352.3,0.29884]
[1735682426275,0.29886,3352.2,3352.1,1.15936]
[1735682426774,2.55265531,3352.7,3352.1,1.15936]
[1735682426775,0.29886,3352.3,3352.2,0.29886]
[1735682426975,0.29886,3352.2,3352.1,1.15936]
[1735682427974,0.29886,3352.2,3352.1,0.8605]
[1735682428273,2.70469531,3352.4,3352.0,0.29887]
[1735682428581,0.29889,3351.9,3351.8,0.73649]
[1735682429977,3.45181531,3352.4,3351.8,0.4376]
[1735682430176,3.2078,3352.6,3351.8,0.4376]
[1735682430484,1.80559531,3352.7,3352.6,0.29881]
[1735682430485,0.29882,3352.7,3352.6,0.29881]
[1735682432081,0.29883,3352.6,3352.5,0.29883]
[1735682432682,0.29883,3352.5,3352.4,1.16843]
[1735682435680,0.29882,3352.7,3352.6,0.29881]
[1735682436887,0.29881,3352.8,3352.7,0.2988]
[1735682437785,0.29883,3352.5,3352.4,0.4393]
[1735682439389,0.29883,3352.5,3352.4,0.73814]
[1735682440690,0.29883,3352.5,3352.4,0.4393]
[1735682442891,0.74709,3352.5,3351.9,0.29888]
[1735682443089,0.29888,3352.0,3351.9,1.17008]
[1735682443893,0.29887,3352.1,3352.0,0.29887]
[1735682445595,0.29888,3352.0,3351.9,1.17008]
[1735682445794,0.29888,3352.0,3351.9,0.8712]
[1735682446393,0.29888,3352.0,3351.9,0.4469]
[1735682446896,0.73818,3352.0,3351.9,0.4469]
[1735682448303,0.2989,3351.7,3351.6,3.94611]
[1735682448701,0.29892,3351.5,3351.4,0.4529]
[1735682449010,0.29895,3351.2,3351.1,0.72605]
[1735682449305,0.29895,3351.2,3351.1,1.17375]
[1735682449494,0.29895,3351.2,3351.1,0.8748]
[1735682449700,0.29895,3351.2,3351.1,1.17376]
[1735682449899,0.29895,3351.2,3351.1,0.8748]
[1735682450205,0.29895,3351.2,3351.1,1.17376]
[1735682450805,0.29894,3351.3,3351.2,0.29895]
[1735682451305,0.29895,3351.2,3351.1,1.17375]
[1735682452406,0.29895,3351.2,3351.1,0.8748]
[1735682452607,0.29895,3351.2,3351.1,1.17376]
[1735682452808,1.80559531,3351.5,3351.1,1.17376]
[1735682452809,0.29894,3351.3,3351.2,0.29894]
[1735682453707,5.01339531,3351.5,3351.1,0.8748]
[1735682453907,5.01339531,3351.5,3351.2,0.29895]
[1735682454108,0.29895,3351.3,3351.2,0.29895]
[1735682454411,5.01339531,3351.5,3351.1,0.8748]
[1735682454610,0.29895,3351.2,3351.1,1.17376]
[1735682457510,3.2078,3351.5,3351.1,0.8748]
[1735682457816,3.50672,3351.5,3351.4,0.29893]
[1735682458112,0.29892,3351.6,3351.5,0.29892]
[1735682458304,0.29892,3351.5,3351.4,0.29892]
[1735682458902,1.80559531,3351.8,3351.3,0.444]
[1735682459219,1.80559531,3351.8,3351.2,3.2078]
[1735682459220,1.80559531,3351.5,3351.2,3.2078]
[1735682459421,0.29895,3351.2,3351.1,0.8748]
[1735682459716,0.29899,3350.7,3350.6,6.98771049]
[1735682459910,5.31238531,3350.7,3350.6,6.98771049]
[1735682460109,0.29902,3350.4,3350.3,7.41811049]
[1735682461115,0.29902,3350.4,3350.3,7.71714049]
[1735682461308,0.29902,3350.4,3350.3,7.41811049]
[1735682461511,0.29902,3350.4,3350.3,7.71714049]
[1735682461713,0.29902,3350.4,3350.3,0.72943]
[1735682462208,0.29902,3350.4,3350.3,0.4304]
[1735682468808,0.29902,3350.4,3350.3,0.72943]
[1735682470224,0.29902,3350.4,3350.3,0.4304]
[1735682472814,0.29902,3350.4,3350.3,0.72943]
[1735682473014,0.29902,3350.4,3350.3,0.4304]
[1735682473922,0.29902,3350.4,3350.3,0.72943]
[1735682474614,0.29902,3350.4,3350.3,0.4304]
[1735682475418,0.29902,3350.4,3350.3,0.72943]
[1735682476723,0.29902,3350.4,3350.3,0.4304]
[1735682476925,0.29904,3350.2,3350.1,3.50684]
[1735682477715,0.29904,3350.2,3350.1,3.2078]
[1735682482329,0.29905,3350.0,3349.9,0.29906]
[1735682482829,0.29905,3350.1,3350.0,0.29905]
[1735682484531,3.2078,3350.5,3349.9,3.95546]
[1735682484723,0.29899,3350.8,3350.7,0.29898]
[1735682484925,3.2078,3350.9,3350.5,0.4577]
[1735682485125,0.299,3350.7,3350.6,0.299]
[1735682486533,0.299,3350.6,3350.5,0.454]
[1735682486830,0.29904,3350.3,3350.2,0.29904]
[1735682487026,0.8893,3350.6,3350.1,0.9051]
[1735682487027,1.80559531,3350.4,3350.1,0.9051]
[1735682487233,0.29905,3350.1,3349.8,10.19551049]
[1735682487438,2.10464531,3350.1,3350.0,0.454]
[1735682488331,2.10464531,3350.1,3350.0,0.75305]
[1735682491543,0.29905,3350.0,3349.9,0.75016]
[1735682491838,1.19125,3350.0,3349.9,0.75016]
[1735682492832,0.29906,3349.9,3349.8,3.2078]
[1735682498438,0.29907,3349.8,3349.7,0.75658]
[1735682498732,1.80559531,3350.1,3349.7,0.4575]
[1735682499033,2.10464531,3350.1,3350.0,0.29905]
[1735682499639,1.80559531,3350.1,3349.7,0.4575]
[1735682499835,0.29907,3349.9,3349.8,0.29907]
[1735682500140,0.29907,3349.9,3349.8,4.94897252]
[1735682500332,1.80559531,3350.1,3349.8,4.64990252]
[1735682500533,0.29906,3350.0,3349.9,0.29906]
[1735682502942,0.29907,3349.9,3349.8,0.29906]
[1735682505548,0.29907,3349.9,3349.8,4.94896252]
[1735682506251,0.29907,3349.9,3349.8,4.64990252]
[1735682506544,0.29907,3349.9,3349.8,0.4629]
[1735682507452,0.29907,3349.8,3349.7,4.64990252]
[1735682507636,0.75707,3349.8,3349.6,5.11280252]
[1735682507845,0.29908,3349.7,3349.6,5.11280252]
[1735682508853,0.29908,3349.7,3349.6,0.4629]
[1735682509743,0.29730063,3349.7,3349.6,0.4629]
[1735682511143,1.80559531,3349.9,3349.5,4.64990252]
[1735682511352,2.10468531,3349.6,3349.5,4.64990252]
[1735682511746,0.2991,3349.5,3349.4,5.11470252]
[1735682511946,0.725,3349.5,3349.4,4.64990252]
[1735682513251,0.29911,3349.4,3349.3,0.4266]
[1735682515058,0.29914,3349.1,3349.0,4.64990252]
[1735682515257,2.10473531,3349.1,3349.0,4.64990252]
[1735682515757,1.80559531,3349.1,3348.9,4.64990252]
[1735682516057,0.73874,3349.0,3348.9,4.64990252]
[1735682517460,0.29915,3348.9,3348.8,0.4492]
[1735682518963,0.29915,3348.9,3348.8,0.74836]
[1735682519355,0.29915,3348.9,3348.8,0.4492]
[1735682521460,0.29917,3348.7,3348.6,0.4588]
[1735682521657,0.29917,3348.7,3348.6,0.9251]
[1735682522560,0.29917,3348.7,3348.5,4.64990252]
[1735682522561,1.80559531,3348.7,3348.5,4.64990252]
[1735682522757,1.63138,3348.6,3348.5,4.64990252]
[1735682523062,1.63138,3348.6,3348.3,10.19551049]
[1735682523063,0.2992,3348.4,3348.3,7.85770252]
[1735682523262,2.10479531,3348.4,3348.3,7.85770252]
[1735682524362,2.10479531,3348.4,3348.3,3.2078]
[1735682525864,0.29916,3348.9,3348.8,0.29915]
[1735682526072,2.55348531,3349.0,3348.3,3.647]
[1735682526369,0.2992,3348.5,3348.4,0.29919]
[1735682527762,0.2992,3348.4,3348.3,3.94621]
[1735682532867,0.29919,3348.5,3348.4,0.29919]
[1735682538477,0.2992,3348.4,3348.3,0.4392]
[1735682538776,2.10479531,3348.4,3348.3,0.7384]
[1735682540477,0.29921,3348.3,3348.2,0.435]
[1735682540873,0.4579,3348.3,3348.1,3.2078]
[1735682541081,0.29922,3348.2,3348.1,3.2078]
[1735682541278,0.75992,3348.2,3348.1,3.2078]
[1735682542783,0.75992,3348.2,3348.1,3.50702]
[1735682543081,2.24409531,3348.4,3348.3,0.29921]
[1735682543082,2.10479531,3348.4,3348.3,0.29921]
[1735682543776,2.10479531,3348.4,3348.3,0.74761]
[1735682543976,1.80559531,3348.4,3348.3,0.74761]
[1735682544377,2.10479531,3348.4,3348.3,0.74761]
[1735682545180,1.80559531,3348.4,3348.3,0.74761]
[1735682545383,1.80559531,3348.7,3348.6,0.29918]
[1735682545583,2.10476531,3348.7,3348.6,0.29918]
[1735682546182,1.80559531,3348.7,3348.6,3.50698]
[1735682546778,2.10476531,3348.7,3348.6,3.50698]
[1735682548087,1.80559531,3348.7,3348.6,3.50698]
[1735682550683,1.80559531,3348.7,3348.6,0.29918]
[1735682551083,2.10476531,3348.7,3348.6,0.29918]
[1735682552387,1.80559531,3348.7,3348.6,0.29918]
[1735682554389,0.29916,3348.9,3348.8,0.29916]
[1735682554591,1.80559531,3349.3,3348.7,3.2078]
[1735682554792,1.80559531,3349.3,3349.2,0.29912]
[1735682554793,2.10471531,3349.3,3349.2,0.29912]
[1735682555383,1.80559531,3349.3,3348.8,1.3178]
[1735682555579,0.29915,3348.9,3348.8,1.61696]
[1735682555789,0.29915,3348.9,3348.8,1.18746]
[1735682558294,0.29915,3348.9,3348.8,5.83736252]
[1735682559292,0.29915,3348.9,3348.8,1.18746]
[1735682561190,0.29915,3348.9,3348.8,0.8883]
[1735682561391,1.80559531,3349.0,3348.7,8.15687252]
[1735682561592,0.29916,3348.8,3348.7,8.15687252]
[1735682562594,0.29916,3348.8,3348.7,4.94907252]
[1735682565396,0.29916,3348.8,3348.7,0.29917]
[1735682565697,0.29917,3348.7,3348.6,4.94908252]
[1735682565899,2.53056531,3348.7,3348.6,4.64990252]
[1735682567100,0.72497,3348.7,3348.6,4.64990252]
[1735682567395,2.10475531,3348.9,3348.8,0.29916]
[1735682567601,0.29917,3348.8,3348.7,0.4317]
[1735682567897,0.2992,3348.4,3348.3,8.15690252]
[1735682568098,2.10479531,3348.4,3348.3,7.85770252]
[1735682569302,1.80559531,3348.4,3348.3,7.85770252]
[1735682569598,1.80559531,3348.4,3348.3,8.15691252]
[1735682569899,1.80559531,3348.7,3348.6,0.29918]
[1735682571207,3.52483359,3348.9,3348.8,0.29916]
[1735682571610,2.10474531,3349.0,3348.9,0.29915]
[1735682572710,0.29916,3348.9,3348.8,0.29916]
[1735682572911,0.29916,3348.8,3348.7,4.94907252]
[1735682575316,0.76316,3348.9,3348.8,0.29916]
[1735682576411,0.29916,3348.9,3348.8,0.29916]
[1735682579812,3.52483359,3349.2,3348.7,4.64990252]
[1735682580015,3.82396359,3349.2,3349.1,0.29914]
[1735682580917,3.52483359,3349.2,3349.1,0.29914]
[1735682581114,3.82396359,3349.2,3349.1,0.29914]
[1735682581915,0.29913,3349.2,3349.1,0.29914]
[1735682582407,5.3304289,3349.3,3349.0,0.4649]
[1735682582722,5.6295489,3349.3,3349.2,0.29913]
[1735682584014,2.10471531,3349.3,3349.2,0.29913]
[1735682584529,3.82393359,3349.5,3349.4,0.29911]
[1735682584817,5.6295289,3349.5,3349.4,0.29911]
[1735682585115,1.80559531,3349.5,3349.4,0.29911]
[1735682585321,3.52483359,3349.7,3349.6,0.29909]
[1735682586415,2.10466531,3349.8,3349.7,0.29908]
[1735682586720,0.29906,3350.0,3349.9,0.29906]
[1735682587611,1.80559531,3350.1,3350.0,0.29905]
[1735682587815,2.10464531,3350.1,3350.0,0.29905]
[1735682588220,1.80559531,3350.1,3350.0,0.29905]
[1735682588824,2.10464531,3350.1,3350.0,0.29905]
[1735682589229,0.29906,3350.0,3349.9,0.29906]
[1735682589528,0.29907,3349.8,3349.7,4.64990252]
[1735682589716,2.10466531,3349.8,3349.7,4.94898252]
[1735682590525,2.10466531,3349.8,3349.7,4.64990252]
[1735682590723,2.56086531,3349.8,3349.7,4.64990252]
[1735682591526,0.29909,3349.6,3349.5,5.11120252]
[1735682592823,0.29909,3349.6,3349.5,0.4613]
[1735682594522,0.29909,3349.6,3349.5,0.7604]
[1735682595330,0.29909,3349.6,3349.5,0.4613]
[1735682596132,0.29909,3349.6,3349.5,0.7604]
[1735682597329,2.26179531,3349.8,3349.3,0.29911]
[1735682597528,1.80559531,3349.5,3349.3,0.29911]
[1735682597732,0.29911,3349.4,3349.3,4.94901252]
[1735682599026,1.80559531,3349.5,3349.3,4.64990252]
[1735682599227,2.10470531,3349.5,3349.4,0.29911]
[1735682604832,1.80559531,3349.5,3349.4,0.29911]
[1735682606034,2.10469531,3349.5,3349.4,0.29911]
[1735682614142,1.80559531,3349.5,3349.4,0.29911]
[1735682614642,0.4562,3349.8,3349.4,0.29911]
[1735682614945,1.80559531,3349.8,3349.7,0.29908]
[1735682615350,1.80559531,3349.8,3349.7,0.72908]
[1735682618241,2.64899035,3350.1,3349.7,0.43]
[1735682618437,1.80559531,3350.0,3349.8,0.74769]
[1735682618642,1.80559531,3350.0,3349.9,0.29906]
[1735682618849,2.10464531,3350.0,3349.9,0.29906]
[1735682624451,1.15682232,3350.0,3349.9,0.29906]
[1735682628563,0.85777232,3350.0,3349.9,0.29906]
[1735682628866,1.15682232,3350.0,3349.9,0.29906]
[1735682631757,4.38260591,3350.0,3349.9,0.29906]
[1735682631956,4.68165591,3350.0,3349.9,0.29906]
[1735682636664,5.53942823,3350.0,3349.9,0.29906]
[1735682638272,4.36689868,3350.0,3349.9,0.29906]
[1735682641569,3.50912636,3350.0,3349.9,0.29906]
[1735682642163,1.15682232,3350.0,3349.9,0.29906]
[1735682642366,0.29905,3350.0,3349.9,4.94896252]
[1735682642564,1.15682232,3350.0,3349.9,4.94896252]
[1735682646168,2.35230404,3350.1,3349.9,4.64990252]
[1735682646368,2.35230404,3350.1,3350.0,3.50685]
[1735682646666,3.21007636,3350.1,3350.0,4.39945]
[1735682647174,0.79230404,3350.1,3350.0,4.39945]
[1735682647767,0.85777232,3350.4,3350.0,9.69857112]
[1735682647972,0.85777232,3350.4,3350.3,0.29903]
[1735682649379,0.85777232,3350.4,3350.3,5.89720112]
[1735682651076,0.85777232,3350.4,3350.3,5.59817112]
[1735682651272,0.85777232,3350.4,3350.3,5.89720112]
[1735682653679,1.15677232,3350.6,3350.3,5.59817112]
[1735682653878,1.15677232,3350.6,3350.5,0.29901]
[1735682654379,1.15677232,3350.6,3350.5,1.16231]
[1735682656476,0.85777232,3350.6,3350.5,1.16231]
[1735682656678,1.15676232,3350.8,3350.7,0.29898]
[1735682658277,0.29897,3351.1,3351.0,0.29896]
[1735682658482,1.15674232,3351.1,3351.0,0.29896]
[1735682661184,0.85777232,3351.1,3350.7,4.66521919]
[1735682661375,1.15675232,3350.8,3350.7,4.96420919]
[1735682662380,1.15675232,3350.8,3350.7,0.29899]
[1735682664386,0.85777232,3350.8,3350.5,5.99081919]
[1735682664580,1.15677232,3350.6,3350.5,5.82752919]
[1735682666193,1.15677232,3350.6,3350.5,1.16231]
[1735682669486,0.85777232,3350.6,3350.5,1.16231]
[1735682671285,0.85777232,3350.6,3350.4,3.2078]
[1735682671486,0.29901,3350.5,3350.4,3.2078]
[1735682671788,0.29903,3350.3,3350.2,4.96424919]
[1735682671988,1.15680232,3350.3,3350.2,4.96424919]
[1735682672384,1.15680232,3350.3,3350.2,4.96425919]
[1735682672585,1.15680232,3350.3,3350.2,4.66521919]
[1735682673388,1.15680232,3350.3,3350.0,10.20723987]
[1735682673389,1.71554464,3350.3,3350.0,3.2078]
[1735682673584,2.01459464,3350.1,3350.0,3.2078]
[1735682674092,0.29907,3349.8,3349.7,4.66521919]
[1735682674296,1.15684232,3349.8,3349.7,4.66521919]
[1735682674998,0.29908,3349.7,3349.6,3.2078]
[1735682675288,0.76278,3349.7,3349.6,3.2078]